Workbook

Sheet Home
B2: APEX Performance Account Planner | G2: Get your own APEX account | L2: Share with a friend - https://aeromir.com/paplanner
B3: Version 1.02 Tom Nunamaker - aeromir.com | M3: Year | N3: Accounts
M4: =IF(MONTH(TODAY())<10,YEAR(TODAY()),YEAR(TODAY())+1) -> 2025 | N4: 4
B5: Days required to trade | C5: 8 | E5: Date | F5: Withdrawal | G5: To Trader | H5: Account Profit | I5: Trader % | J5: Scaling | L5: Month | M5: Payouts | N5: Payouts
B6: Account size | C6: 150000 | E6: =C15 -> 2025-01-14 | F6: =-MIN($C$17,$C$8) -> -2750 | G6: =F6*I6 -> -2750 | H6: =C16+F6 -> 5250 | I6: =IF(SUM($G$5:G5)<-25000, 0.9, 1) -> 1 | J6: 1 | L6: 2024-01-01 | M6: =IFERROR(-1*SUMIFS($G$6:$G$1001, $E$6:$E$1001,">="&DATE($M$4,MONTH(L6),1), $E$6:$E$1001,"<="&EOMONTH(DATE($M$4,MONTH(L6),1),0)),"") -> 5150 | N6: =IF(ISNUMBER(M6),M6*$N$4,"") -> 20600
B7: Drawdown | C7: =VLOOKUP(C6, APEX!B5:C11, 2, FALSE) -> 5000 | E7: =WORKDAY(E6, 8, Holidays!$B$5:$B$200) -> 2025-01-27 | F7: =-MIN($C$17*$C$18,$C$8) -> -2400 | G7: -2400 | H7: =$C$5*$C$12+H6+F7 -> 6050 | I7: 1 | J7: =MIN($C$21, CEILING(H6/$C$20,1)) -> 1 | L7: 2024-02-01 | M7: =IFERROR(-1*SUMIFS($G$6:$G$1001, $E$6:$E$1001,">="&DATE($M$4,MONTH(L7),1), $E$6:$E$1001,"<="&EOMONTH(DATE($M$4,MONTH(L7),1),0)),"") -> 4800 | N7: 19200
B8: Withdrawal Initial | C8: =VLOOKUP(C6, APEX!B5:E11, 4, FALSE) -> 2750 | E8: =WORKDAY(E7, 8, Holidays!$B$5:$B$200) -> 2025-02-06 | F8: =-MIN($C$17*$C$18,$C$8) -> -2400 | G8: -2400 | H8: =$C$5*$C$12+H7+F8 -> 6850 | I8: 1 | J8: 1 | L8: 2024-03-01 | M8: 7200 | N8: 28800
B9: Safety Net | C9: =C7+100 -> 5100 | E9: =WORKDAY(E8, 8, Holidays!$B$5:$B$200) -> 2025-02-18 | F9: =-MIN($C$17*$C$18,$C$8) -> -2400 | G9: -2400 | H9: =$C$5*$C$12+H8+F9 -> 7650 | I9: 1 | J9: 1 | L9: 2024-04-01 | M9: 7200 | N9: 28800
B10: Initial target | C10: =C9+C8 -> 7850 | E10: =WORKDAY(E9, 8, Holidays!$B$5:$B$200) -> 2025-03-03 | F10: =-MIN($C$17*$C$18,$C$8) -> -2400 | G10: -2400 | H10: =$C$5*$C$12+H9+F10 -> 8450 | I10: 1 | J10: 1 | L10: 2024-05-01 | M10: 6720 | N10: 26880
B11: Starting Profit | C11: 0 | D11: =IF(C11>0,C11/C10,"") ->  | E11: =WORKDAY(E10, 8, Holidays!$B$5:$B$200) -> 2025-03-13 | F11: =IF((H10 + ($C$17 * J11)) > $C$24, MIN(($C$24 - H10 - ($C$17 * J11)), J11*$C$17*-1*$C$18), J11*$C$17*-1*$C$18) -> -2400 | G11: -2400 | H11: =$C$17*J11+H10+F11 -> 9250 | I11: 1 | J11: 1 | L11: 2024-06-01 | M11: 12960 | N11: 51840
B12: Profit/Day | C12: =CEILING(C7*0.08,5) -> 400 | E12: =WORKDAY(E11, 8, Holidays!$B$5:$B$200) -> 2025-03-25 | F12: -2400 | G12: -2400 | H12: 10050 | I12: 1 | J12: 1 | L12: 2024-07-01 | M12: 12960 | N12: 51840
B13: Trading Days to 1st target | C13: =CEILING((C10-C11)/C12,1) -> 20 | E13: =WORKDAY(E12, 8, Holidays!$B$5:$B$200) -> 2025-04-04 | F13: -2400 | G13: -2400 | H13: 10850 | I13: 1 | J13: 1 | L13: 2024-08-01 | M13: 10800 | N13: 43200
B14: Start Date | C14: =TODAY() -> 2024-12-14 | E14: =WORKDAY(E13, 8, Holidays!$B$5:$B$200) -> 2025-04-16 | F14: -2400 | G14: -2400 | H14: 11650 | I14: 1 | J14: 1 | L14: 2024-09-01 | M14: 24525 | N14: 98100
B15: Projected Date | C15: =WORKDAY(C14, C13, Holidays!$B5:$B200) -> 2025-01-14 | E15: =WORKDAY(E14, 8, Holidays!$B$5:$B$200) -> 2025-04-28 | F15: -2400 | G15: -2400 | H15: 12450 | I15: 1 | J15: 1 | L15: 2024-10-01 | M15: 25920 | N15: 103680
B16: Projected Profit | C16: =C12*C13 -> 8000 | E16: =WORKDAY(E15, 8, Holidays!$B$5:$B$200) -> 2025-05-08 | F16: -2400 | G16: -2400 | H16: 13250 | I16: 1 | J16: 1 | L16: 2024-11-01 | M16: 17280 | N16: 69120
B17: Profit per Pay Period | C17: =C5*C12 -> 3200 | E17: =WORKDAY(E16, 8, Holidays!$B$5:$B$200) -> 2025-05-20 | F17: -4800 | G17: -4320 | H17: 14850 | I17: 0.9 | J17: 2 | L17: 2024-12-01 | M17: 25920 | N17: 103680
B18: % Profit per Withdrawal | C18: 0.75 | E18: =WORKDAY(E17, 8, Holidays!$B$5:$B$200) -> 2025-06-02 | F18: -4800 | G18: -4320 | H18: 16450 | I18: 0.9 | J18: 2 | L18: Total Payouts | M18: =SUM(M6:M17) -> 161435 | N18: 645740
B19: Drawdown Multiple | C19: 2.5 | E19: =WORKDAY(E18, 8, Holidays!$B$5:$B$200) -> 2025-06-12 | F19: -4800 | G19: -4320 | H19: 18050 | I19: 0.9 | J19: 2 | L19: Ending Balance | M19: =IFERROR(__xludf.DUMMYFUNCTION("VLOOKUP(LARGE(FILTER($E:$E, YEAR($E:$E)=$M$4), 1), $E:$H, 4, FALSE)"),30000) -> 30000
B20: Scaling Balance | C20: =C9*C19 -> 12750 | E20: =WORKDAY(E19, 8, Holidays!$B$5:$B$200) -> 2025-06-25 | F20: -4800 | G20: -4320 | H20: 19650 | I20: 0.9 | J20: 2 | L20: Payouts + Balance | M20: =M19+M18 -> 191435
B21: Max scale | C21: 3 | E21: =WORKDAY(E20, 8, Holidays!$B$5:$B$200) -> 2025-07-08 | F21: -4800 | G21: -4320 | H21: 21250 | I21: 0.9 | J21: 2
B22: Required Daily Profit | C22: =C8/C5 -> 343.75 | E22: =WORKDAY(E21, 8, Holidays!$B$5:$B$200) -> 2025-07-18 | F22: -4800 | G22: -4320 | H22: 22850 | I22: 0.9 | J22: 2
B23: Max withdrawal multiplier | C23: 6 | E23: =WORKDAY(E22, 8, Holidays!$B$5:$B$200) -> 2025-07-30 | F23: -4800 | G23: -4320 | H23: 24450 | I23: 0.9 | J23: 2
B24: 100% withdrawal threshold | C24: =FLOOR(C9*$C$23, 1000) -> 30000 | E24: =WORKDAY(E23, 8, Holidays!$B$5:$B$200) -> 2025-08-11 | F24: -4800 | G24: -4320 | H24: 26050 | I24: 0.9 | J24: 2
E25: =WORKDAY(E24, 8, Holidays!$B$5:$B$200) -> 2025-08-21 | F25: -7200 | G25: -6480 | H25: 28450 | I25: 0.9 | J25: 3
B26: Largest Daily Profit | C26: 0 | E26: =WORKDAY(E25, 8, Holidays!$B$5:$B$200) -> 2025-09-03 | F26: -8050 | G26: -7245 | H26: 30000 | I26: 0.9 | J26: 3
B27: Required Profit (30% Rule) | C27: =IF(C26>0,C26/0.3,"") ->  | E27: =WORKDAY(E26, 8, Holidays!$B$5:$B$200) -> 2025-09-15 | F27: -9600 | G27: -8640 | H27: 30000 | I27: 0.9 | J27: 3
E28: =WORKDAY(E27, 8, Holidays!$B$5:$B$200) -> 2025-09-25 | F28: -9600 | G28: -8640 | H28: 30000 | I28: 0.9 | J28: 3
E29: =WORKDAY(E28, 8, Holidays!$B$5:$B$200) -> 2025-10-07 | F29: -9600 | G29: -8640 | H29: 30000 | I29: 0.9 | J29: 3
E30: =WORKDAY(E29, 8, Holidays!$B$5:$B$200) -> 2025-10-17 | F30: -9600 | G30: -8640 | H30: 30000 | I30: 0.9 | J30: 3
E31: =WORKDAY(E30, 8, Holidays!$B$5:$B$200) -> 2025-10-29 | F31: -9600 | G31: -8640 | H31: 30000 | I31: 0.9 | J31: 3
E32: =WORKDAY(E31, 8, Holidays!$B$5:$B$200) -> 2025-11-10 | F32: -9600 | G32: -8640 | H32: 30000 | I32: 0.9 | J32: 3
E33: =WORKDAY(E32, 8, Holidays!$B$5:$B$200) -> 2025-11-20 | F33: -9600 | G33: -8640 | H33: 30000 | I33: 0.9 | J33: 3
E34: =WORKDAY(E33, 8, Holidays!$B$5:$B$200) -> 2025-12-03 | F34: -9600 | G34: -8640 | H34: 30000 | I34: 0.9 | J34: 3
E35: =WORKDAY(E34, 8, Holidays!$B$5:$B$200) -> 2025-12-15 | F35: -9600 | G35: -8640 | H35: 30000 | I35: 0.9 | J35: 3
E36: =WORKDAY(E35, 8, Holidays!$B$5:$B$200) -> 2025-12-26 | F36: -9600 | G36: -8640 | H36: 30000 | I36: 0.9 | J36: 3
E37: =WORKDAY(E36, 8, Holidays!$B$5:$B$200) -> 2026-01-08 | F37: -9600 | G37: -8640 | H37: 30000 | I37: 0.9 | J37: 3
E38: =WORKDAY(E37, 8, Holidays!$B$5:$B$200) -> 2026-01-21 | F38: -9600 | G38: -8640 | H38: 30000 | I38: 0.9 | J38: 3
E39: =WORKDAY(E38, 8, Holidays!$B$5:$B$200) -> 2026-02-02 | F39: -9600 | G39: -8640 | H39: 30000 | I39: 0.9 | J39: =MIN($C$21, CEILING(H38/$C$20,1)) -> 3
E40: =WORKDAY(E39, 8, Holidays!$B$5:$B$200) -> 2026-02-12 | F40: -9600 | G40: -8640 | H40: 30000 | I40: 0.9 | J40: 3
E41: =WORKDAY(E40, 8, Holidays!$B$5:$B$200) -> 2026-02-25 | F41: -9600 | G41: -8640 | H41: 30000 | I41: 0.9 | J41: 3
E42: =WORKDAY(E41, 8, Holidays!$B$5:$B$200) -> 2026-03-09 | F42: -9600 | G42: -8640 | H42: 30000 | I42: 0.9 | J42: 3
E43: =WORKDAY(E42, 8, Holidays!$B$5:$B$200) -> 2026-03-19 | F43: =IF((H42 + ($C$17 * J43)) > $C$24, MIN(($C$24 - H42 - ($C$17 * J43)), J43*$C$17*-1*$C$18), J43*$C$17*-1*$C$18) -> -9600 | G43: -8640 | H43: =$C$17*J43+H42+F43 -> 30000 | I43: 0.9 | J43: 3
E44: =WORKDAY(E43, 8, Holidays!$B$5:$B$200) -> 2026-03-31 | F44: -9600 | G44: -8640 | H44: 30000 | I44: 0.9 | J44: 3
E45: =WORKDAY(E44, 8, Holidays!$B$5:$B$200) -> 2026-04-13 | F45: -9600 | G45: -8640 | H45: 30000 | I45: 0.9 | J45: 3
E46: =WORKDAY(E45, 8, Holidays!$B$5:$B$200) -> 2026-04-23 | F46: -9600 | G46: -8640 | H46: 30000 | I46: 0.9 | J46: 3
E47: =WORKDAY(E46, 8, Holidays!$B$5:$B$200) -> 2026-05-05 | F47: -9600 | G47: -8640 | H47: 30000 | I47: 0.9 | J47: 3
E48: =WORKDAY(E47, 8, Holidays!$B$5:$B$200) -> 2026-05-15 | F48: -9600 | G48: -8640 | H48: 30000 | I48: 0.9 | J48: 3
E49: =WORKDAY(E48, 8, Holidays!$B$5:$B$200) -> 2026-05-28 | F49: -9600 | G49: -8640 | H49: 30000 | I49: 0.9 | J49: 3
E50: =WORKDAY(E49, 8, Holidays!$B$5:$B$200) -> 2026-06-09 | F50: -9600 | G50: -8640 | H50: 30000 | I50: 0.9 | J50: 3
E51: =WORKDAY(E50, 8, Holidays!$B$5:$B$200) -> 2026-06-22 | F51: -9600 | G51: -8640 | H51: 30000 | I51: 0.9 | J51: 3
E52: =WORKDAY(E51, 8, Holidays!$B$5:$B$200) -> 2026-07-02 | F52: -9600 | G52: -8640 | H52: 30000 | I52: 0.9 | J52: 3
E53: =WORKDAY(E52, 8, Holidays!$B$5:$B$200) -> 2026-07-15 | F53: -9600 | G53: -8640 | H53: 30000 | I53: 0.9 | J53: 3
E54: =WORKDAY(E53, 8, Holidays!$B$5:$B$200) -> 2026-07-27 | F54: -9600 | G54: -8640 | H54: 30000 | I54: 0.9 | J54: 3
E55: =WORKDAY(E54, 8, Holidays!$B$5:$B$200) -> 2026-08-06 | F55: -9600 | G55: -8640 | H55: 30000 | I55: 0.9 | J55: 3
E56: =WORKDAY(E55, 8, Holidays!$B$5:$B$200) -> 2026-08-18 | F56: -9600 | G56: -8640 | H56: 30000 | I56: 0.9 | J56: 3
E57: =WORKDAY(E56, 8, Holidays!$B$5:$B$200) -> 2026-08-28 | F57: -9600 | G57: -8640 | H57: 30000 | I57: 0.9 | J57: 3
E58: =WORKDAY(E57, 8, Holidays!$B$5:$B$200) -> 2026-09-10 | F58: -9600 | G58: -8640 | H58: 30000 | I58: 0.9 | J58: 3
E59: =WORKDAY(E58, 8, Holidays!$B$5:$B$200) -> 2026-09-22 | F59: -9600 | G59: -8640 | H59: 30000 | I59: 0.9 | J59: 3
E60: =WORKDAY(E59, 8, Holidays!$B$5:$B$200) -> 2026-10-02 | F60: -9600 | G60: -8640 | H60: 30000 | I60: 0.9 | J60: 3
E61: =WORKDAY(E60, 8, Holidays!$B$5:$B$200) -> 2026-10-14 | F61: -9600 | G61: -8640 | H61: 30000 | I61: 0.9 | J61: 3
E62: =WORKDAY(E61, 8, Holidays!$B$5:$B$200) -> 2026-10-26 | F62: -9600 | G62: -8640 | H62: 30000 | I62: 0.9 | J62: 3
E63: =WORKDAY(E62, 8, Holidays!$B$5:$B$200) -> 2026-11-05 | F63: -9600 | G63: -8640 | H63: 30000 | I63: 0.9 | J63: 3
E64: =WORKDAY(E63, 8, Holidays!$B$5:$B$200) -> 2026-11-17 | F64: -9600 | G64: -8640 | H64: 30000 | I64: 0.9 | J64: 3
E65: =WORKDAY(E64, 8, Holidays!$B$5:$B$200) -> 2026-11-30 | F65: -9600 | G65: -8640 | H65: 30000 | I65: 0.9 | J65: 3
E66: =WORKDAY(E65, 8, Holidays!$B$5:$B$200) -> 2026-12-10 | F66: -9600 | G66: -8640 | H66: 30000 | I66: 0.9 | J66: 3
E67: =WORKDAY(E66, 8, Holidays!$B$5:$B$200) -> 2026-12-22 | F67: -9600 | G67: -8640 | H67: 30000 | I67: 0.9 | J67: 3
E68: =WORKDAY(E67, 8, Holidays!$B$5:$B$200) -> 2027-01-04 | F68: -9600 | G68: -8640 | H68: 30000 | I68: 0.9 | J68: 3
E69: =WORKDAY(E68, 8, Holidays!$B$5:$B$200) -> 2027-01-14 | F69: -9600 | G69: -8640 | H69: 30000 | I69: 0.9 | J69: 3
E70: =WORKDAY(E69, 8, Holidays!$B$5:$B$200) -> 2027-01-26 | F70: -9600 | G70: -8640 | H70: 30000 | I70: 0.9 | J70: 3

Sheet Holidays
B2: Trading Holidays
B4: Holidays
B5: 2024-12-25
B6: 2025-01-01
B7: 2025-01-15
B8: 2025-02-19
B9: 2025-03-29
B10: 2025-05-27
B11: 2025-06-19
B12: 2025-07-04
B13: 2025-09-02
B14: 2025-11-28
B15: 2025-12-25
B16: 2026-01-01
B17: 2026-01-19
B18: 2026-02-16
B19: 2026-04-03
B20: 2026-05-25
B21: 2026-06-19
B22: 2026-07-03
B23: 2026-09-07
B24: 2026-11-26
B25: 2026-12-25

Sheet APEX
B2: APEX Accounts
B4: Account Size | C4: Drawdown | D4: Profit Target | E4: Initial Withdrawals
B5: 25000 | C5: 1500 | D5: 1500 | E5: 1500
B6: 50000 | C6: 2500 | D6: 3000 | E6: 2000
B7: 75000 | C7: 3750 | D7: 4250 | E7: 2250
B8: 100000 | C8: 3000 | D8: 6000 | E8: 2500
B9: 150000 | C9: 5000 | D9: 9000 | E9: 2750
B10: 250000 | C10: 6500 | D10: 15000 | E10: 3000
B11: 300000 | C11: 7500 | D11: 20000 | E11: 3500

Sheet Help
B2: Help
B4: This spreadsheet helps you plan your APEX Performance Account (PA) growth.
B5: The RESET button resets all of the formulae in the spreadsheet
B7: The fields with a blue background are fields you can change
B9: Days required to trade | C9: 8 | E9: Number of trading days to request a payout. This shouldn't change.
B10: Account size | C10: 150000 | E10: The APEX account size
B11: Drawdown | C11: 5000 | E11: The allowed trailing drawdown
B12: Withdrawal Initial | C12: 2750 | E12: The allowed initial withdrawal for the first five payout periods
B13: Safety Net | C13: 5100 | E13: Your APEX required safety. Before you reach this amount of profit you have to trade 1/2 the size normally allowed for your account
B14: Initial target | C14: 7850 | E14: This is the safety net plus the maximum you are allowed to withdraw in the first five payouts
B15: Profit/Day | C15: 333.3333333 | E15: This is the AVERAGE DAILY NET PROFIT you generate for this account
B16: Trading Days to 1st target | C16: 24 | E16: This is how many TRADING DAYS it will take to reach your initial profit target. This excludes weekends and holidays
B17: Start Date | C17: 2024-12-07 | E17: This is the first day you traded this PA account. It defaults to today
B18: Projected Date | C18: 2025-01-13 | E18: This is the projected date you will reach your initial profit target
B19: Projected Profit | C19: 8000 | E19: This is the projected profit you will created for your initial payout
B20: Profit per Pay Period | C20: 2666.666667 | E20: This is the projected profit per payout period after the 1st payout
B21: % Profit per Withdrawal | C21: 0.75 | E21: This is the percentage of your generated profits you wish to withdraw
B22: Drawdown Multiple | C22: 2.5 | E22: This is a mutliple of your drawdown used to calcuate the profit needed to increase the number of contracts traded
B23: Scaling Balance | C23: 12750 | E23: This is the threshold where you will increase the number of contracts traded
B24: Max scale | C24: 3 | E24: This is the maximum scaling factor.
B25: Required Daily Profit | C25: 343.75 | E25: This is the required profit per day required to reach your maximum withdrawal during payouts 2-5
B26: Max withdrawal multiplier | C26: 6 | E26: This is a factor to multiply your drawdown by to calculate the maximum profit you want to leave in your account
B27: 100% withdrawal threshold | C27: 30000 | E27: This is the calculated maximum profit you want to leave in your account.
E30: The year shows the totals per month for the year you have selected
E31: The number above Accounts is how many accounts like this you have
E43: Total payouts are for the selected year
E44: The ending balance is the account value at the end of the year
E45: This value is the total of your payouts + the account ending balance
